bitfinex-derivatives/quotes_BTCF0:USTF0_20250213
["timestamp","ask_amount","ask_price","bid_price","bid_amount"]
[1739413436887,0.001,97770.0,97769.0,0.2045339]
[1739413437089,0.3608,97771.0,97770.0,0.2045318]
[1739413438290,0.001,97771.0,97770.0,0.2045318]
[1739413438491,0.002,97771.0,97770.0,0.2045318]
[1739413440496,0.002,97771.0,97770.0,0.21475627]
[1739413442104,0.05173523,97771.0,97770.0,0.21475627]
[1739413443099,0.05173523,97771.0,97770.0,0.2045318]
[1739413445196,0.05173523,97771.0,97770.0,0.21489041]
[1739413446406,0.05173523,97771.0,97770.0,0.2045318]
[1739413450020,0.002,97771.0,97770.0,0.2045318]
[1739413457918,0.05173386,97771.0,97770.0,0.2045318]
[1739413467023,0.002,97771.0,97770.0,0.2045318]
[1739413471321,0.0001534,97783.0,97782.0,0.2045066]
[1739413471918,0.2101534,97783.0,97782.0,0.2045066]
[1739413472221,0.0001534,97783.0,97782.0,0.2045066]
[1739413472725,0.0011534,97783.0,97782.0,0.2045066]
[1739413473721,0.0011534,97783.0,97782.0,0.2146026]
[1739413479622,0.1911534,97783.0,97782.0,0.2146026]
[1739413479831,0.0011534,97783.0,97782.0,0.2146026]
[1739413481834,0.05088295,97783.0,97782.0,0.2146026]
[1739413485537,0.0011534,97783.0,97782.0,0.2146026]
[1739413486937,0.0021534,97783.0,97782.0,0.2156026]
[1739413499948,0.05188155,97783.0,97782.0,0.2156026]
[1739413508750,0.0021534,97783.0,97782.0,0.2156026]
[1739413516258,0.05187935,97783.0,97782.0,0.2156026]
[1739413522965,0.0021534,97783.0,97782.0,0.2156026]
[1739413528368,0.0021534,97783.0,97782.0,0.5764026]
[1739413528574,0.18374904,97805.0,97783.0,0.00153394]
[1739413528774,0.41374904,97805.0,97798.0,0.2044723]
[1739413528988,0.41374904,97805.0,97801.0,0.2044662]
[1739413529575,0.41374904,97805.0,97795.0,0.07899685]
[1739413529786,0.41374904,97805.0,97796.0,0.2044767]
[1739413529982,0.44534051,97805.0,97796.0,0.2044767]
[1739413530381,0.44434051,97805.0,97796.0,0.2044767]
[1739413530581,0.44534051,97805.0,97796.0,0.2044767]
[1739413530780,0.44634051,97805.0,97796.0,0.2044767]
[1739413531181,0.80714051,97805.0,97796.0,0.2044767]
[1739413531487,0.80714051,97805.0,97796.0,0.015]
[1739413532081,0.80714051,97805.0,97797.0,0.2044746]
[1739413532878,0.80714051,97805.0,97798.0,0.2044728]
[1739413533388,0.80714051,97805.0,97801.0,0.2044665]
[1739413533584,0.15836982,97804.0,97803.0,0.2044615]
[1739413533983,0.20836982,97804.0,97803.0,0.2044615]
[1739413534888,0.20936982,97804.0,97803.0,0.2194615]
[1739413536385,0.21036982,97804.0,97803.0,0.2214615]
[1739413537585,0.10172349,97804.0,97803.0,0.2214615]
[1739413539186,0.10172349,97804.0,97803.0,0.231791]
[1739413541289,0.052,97804.0,97803.0,0.231791]
[1739413543790,0.002,97804.0,97803.0,0.231791]
[1739413545094,0.16126984,97804.0,97803.0,0.231791]
[1739413551698,0.05172349,97804.0,97803.0,0.231791]
[1739413553288,0.65252349,97804.0,97793.0,0.0001534]
[1739413553598,0.2044715,97799.0,97793.0,0.01046984]
[1739413553803,0.21,97799.0,97793.0,0.0001534]
[1739413554002,0.3608,97794.0,97793.0,0.0001534]
[1739413554303,0.5708,97794.0,97793.0,0.0001534]
[1739413554495,0.5708,97794.0,97793.0,0.0161534]
[1739413554797,0.2044983,97786.0,97785.0,0.18405512]
[1739413554998,0.4144983,97786.0,97785.0,0.18405512]
[1739413555593,0.4144983,97786.0,97780.0,0.01004928]
[1739413555896,0.2045013,97785.0,97780.0,0.01004928]
[1739413556102,0.4245013,97785.0,97780.0,0.01004928]
[1739413557490,0.4255013,97785.0,97780.0,0.01004928]
[1739413558297,0.4265013,97785.0,97780.0,0.21455958]
[1739413559000,0.04972349,97784.0,97780.0,0.21455958]
[1739413559205,0.27972349,97784.0,97780.0,0.21455958]
[1739413559702,0.64052349,97784.0,97780.0,0.21455958]
[1739413560904,0.64252349,97784.0,97780.0,0.21455958]
[1739413561294,0.64252349,97784.0,97774.0,0.07426499]
[1739413561500,0.64252349,97784.0,97768.0,0.2045357]
[1739413561807,0.3608,97773.0,97768.0,0.2045357]
[1739413562308,0.3608,97773.0,97768.0,0.21483028]
[1739413562309,0.2045359,97769.0,97768.0,0.21483028]
[1739413563601,0.2055359,97769.0,97768.0,0.21483028]
[1739413564007,0.2065359,97769.0,97768.0,0.21483028]
[1739413569315,0.182,97769.0,97744.0,0.3608]
[1739413569503,0.07899685,97754.0,97751.0,0.2045695]
[1739413569707,0.2045648,97755.0,97751.0,0.21472552]
[1739413569907,0.2045657,97754.0,97751.0,0.21472552]
[1739413570215,0.2045691,97753.0,97751.0,0.21472552]
[1739413571915,0.2055691,97753.0,97751.0,0.21472552]
[1739413572414,0.2045705,97752.0,97735.0,0.00136]
[1739413572614,0.2045705,97752.0,97737.0,0.2046002]
[1739413572615,0.2045966,97739.0,97737.0,0.2046002]
[1739413573112,0.2045966,97739.0,97732.0,0.07428879]
[1739413573310,0.2045966,97739.0,97731.0,0.204613]
[1739413573510,0.2045966,97739.0,97726.0,0.2046232]
[1739413573711,0.2055966,97739.0,97727.0,0.2046213]
[1739413573910,0.4355966,97739.0,97737.0,0.01033612]
[1739413574326,0.231,97739.0,97727.0,0.2046213]
[1739413574518,0.2046113,97733.0,97727.0,0.2046213]
[1739413574817,0.3608,97734.0,97727.0,0.2046213]
[1739413575028,0.5608,97734.0,97723.0,0.0105178]
[1739413575320,0.2046289,97724.0,97721.0,0.204634]
[1739413575714,0.3608,97726.0,97721.0,0.204634]
[1739413576113,0.2,97726.0,97721.0,0.204634]
[1739413576322,1.5,97728.0,97721.0,0.204634]
[1739413576722,1.7,97728.0,97721.0,0.2148993]
[1739413576913,0.001,97726.0,97721.0,0.2148993]
[1739413577115,0.212,97726.0,97721.0,0.2148993]
[1739413577315,0.002,97726.0,97721.0,0.2148993]
[1739413577620,0.001,97726.0,97721.0,0.2148993]
[1739413578024,0.001,97726.0,97724.0,0.2046277]
[1739413578321,1.501,97728.0,97724.0,0.2046277]
[1739413578521,1.502,97728.0,97724.0,0.2046277]
[1739413578722,1.742,97728.0,97724.0,0.2046277]
[1739413579116,0.001,97726.0,97724.0,0.2046277]
[1739413579717,0.002,97726.0,97724.0,0.2046277]
[1739413579928,0.001,97726.0,97724.0,0.2046277]
[1739413581225,0.001,97726.0,97721.0,0.0102653]
[1739413581418,0.3608,97723.0,97717.0,0.204641]
[1739413581613,0.5508,97723.0,97717.0,0.204641]
[1739413581815,0.5508,97723.0,97717.0,0.21498344]
[1739413582821,0.3608,97723.0,97717.0,0.21498344]
[1739413583327,0.3618,97723.0,97718.0,0.2046394]
[1739413583827,0.5918,97723.0,97718.0,0.2046394]
[1739413584020,0.3618,97723.0,97718.0,0.2046394]
[1739413584222,0.5628,97723.0,97718.0,0.2046394]
[1739413584731,0.5628,97723.0,97717.0,0.01034244]
[1739413584924,0.5628,97723.0,97712.0,0.3608]
[1739413585227,0.14759685,97722.0,97712.0,0.37090891]
[1739413585425,0.2046364,97721.0,97712.0,0.37090891]
[1739413586021,0.07899685,97722.0,97712.0,0.57556171]
[1739413586424,0.07999685,97722.0,97712.0,0.57556171]
[1739413587030,0.001,97721.0,97712.0,0.57556171]
[1739413587930,0.2056351,97721.0,97712.0,0.37090891]
[1739413588229,0.002,97721.0,97720.0,0.2046364]
[1739413588729,0.001,97721.0,97720.0,0.2046364]
[1739413589123,0.002,97721.0,97720.0,0.2046364]
[1739413589632,0.001,97721.0,97720.0,0.2046364]
[1739413589823,0.002,97721.0,97720.0,0.2046364]
[1739413590222,0.001,97721.0,97720.0,0.2046364]
[1739413590533,0.002,97721.0,97720.0,0.2046364]
[1739413602537,0.002,97721.0,97712.0,0.37226891]
[1739413602740,0.212,97721.0,97712.0,0.37090891]
[1739413602942,0.192,97721.0,97712.0,0.37090891]
[1739413603238,0.192,97721.0,97717.0,0.2046412]
[1739413603630,0.001,97721.0,97718.0,0.2046394]
[1739413603831,0.002,97721.0,97719.0,0.2046378]
[1739413604039,0.192,97721.0,97719.0,0.2046378]
[1739413604543,0.002,97721.0,97719.0,0.2046378]
[1739413604741,0.2066347,97721.0,97712.0,0.21476141]
[1739413605238,0.002,97721.0,97712.0,0.21476141]
[1739413605443,0.2046372,97720.0,97712.0,0.21476141]
[1739413605642,0.002,97721.0,97712.0,0.21476141]
[1739413605844,0.204641,97718.0,97712.0,0.21476141]
[1739413606944,0.204641,97718.0,97713.0,0.2046507]
[1739413607743,0.205641,97718.0,97713.0,0.2046507]
[1739413608147,0.204641,97718.0,97713.0,0.2046507]
[1739413608347,0.3608,97714.0,97713.0,0.2046507]
[1739413609242,0.5508,97714.0,97709.0,0.18405512]
[1739413609444,0.2046519,97713.0,97709.0,0.18405512]
[1739413609747,0.2,97713.0,97709.0,0.18405512]
[1739413609947,0.2046573,97710.0,97709.0,0.18405512]
[1739413610138,0.4046573,97710.0,97709.0,0.18405512]
[1739413611249,0.4056573,97710.0,97709.0,0.18405512]
[1739413611443,0.4066573,97710.0,97709.0,0.18405512]
[1739413613141,0.002,97710.0,97709.0,0.38871452]
[1739413614942,0.002,97710.0,97709.0,0.2046594]
[1739413615450,0.232,97710.0,97709.0,0.2046594]
[1739413615644,0.002,97710.0,97709.0,0.2046594]
[1739413616951,0.2066573,97710.0,97709.0,0.2046594]
[1739413617139,0.4266573,97710.0,97709.0,0.2046594]
[1739413617346,0.2046623,97708.0,97701.0,0.18405512]
[1739413617651,0.2046623,97708.0,97705.0,0.2046678]
[1739413618448,0.2046623,97708.0,97706.0,0.2046655]
[1739413618946,0.2046623,97708.0,97707.0,0.2046636]
[1739413619151,0.2056623,97708.0,97707.0,0.2046636]
[1739413619650,0.4166623,97708.0,97707.0,0.2046636]
[1739413619850,0.2066623,97708.0,97707.0,0.2046636]
[1739413620349,0.204672,97703.0,97702.0,0.2046738]
[1739413620553,0.2066618,97708.0,97702.0,0.01021195]
[1739413620742,0.2066618,97708.0,97707.0,0.2046636]
[1739413620743,0.002,97708.0,97707.0,0.2046636]
[1739413621350,0.001,97708.0,97707.0,0.2046636]
[1739413622247,0.3608,97714.0,97709.0,0.2046591]
[1739413622554,0.7954492,97714.0,97700.0,0.1]
[1739413622748,0.7954492,97714.0,97705.0,0.2046669]
[1739413622749,0.07899685,97710.0,97705.0,0.2046669]
[1739413622949,0.001,97708.0,97705.0,0.2046669]
[1739413623151,0.232,97708.0,97705.0,0.2046669]
[1739413623655,0.211,97708.0,97706.0,0.204665]
[1739413624343,0.212,97708.0,97706.0,0.204665]
[1739413624544,0.002,97708.0,97706.0,0.204665]
[1739413624746,0.212,97708.0,97706.0,0.204665]
[1739413624945,0.212,97708.0,97701.0,0.204676]
[1739413625149,0.212,97708.0,97700.0,0.11048898]
[1739413625449,0.211,97708.0,97700.0,0.11048898]
[1739413626245,0.3608,97705.0,97700.0,0.11048898]
[1739413627655,0.3618,97705.0,97700.0,0.11048898]
[1739413628045,0.001,97705.0,97700.0,0.11048898]
[1739413628949,0.002,97705.0,97700.0,0.11048898]
[1739413629254,0.232,97705.0,97700.0,0.11048898]
[1739413629456,0.002,97705.0,97700.0,0.11048898]
[1739413630848,0.242,97705.0,97700.0,0.11048898]
[1739413631046,0.002,97705.0,97700.0,0.11048898]
[1739413631252,0.212,97705.0,97700.0,0.11048898]
[1739413631655,0.002,97705.0,97700.0,0.11048898]
[1739413631854,0.202,97705.0,97700.0,0.11048898]
[1739413632149,0.002,97705.0,97700.0,0.11048898]
[1739413632346,0.202,97705.0,97700.0,0.11048898]
[1739413632549,0.002,97705.0,97700.0,0.11048898]
[1739413633153,0.2046762,97701.0,97700.0,0.1]
[1739413633357,0.4046762,97701.0,97700.0,0.1]
[1739413633556,0.2046762,97701.0,97700.0,0.1]
[1739413633757,0.4246762,97701.0,97700.0,0.1]
[1739413634058,0.2046762,97701.0,97700.0,0.1]
[1739413634557,0.002,97705.0,97700.0,0.1]
[1739413634755,0.06856,97704.0,97700.0,0.1]
[1739413634955,0.30856,97704.0,97700.0,0.1]
[1739413635556,0.002,97701.0,97700.0,0.1]
[1739413635758,0.07056,97701.0,97700.0,0.1]
[1739413636059,0.06856,97701.0,97700.0,0.1]
[1739413636758,0.06956,97701.0,97700.0,0.1]
[1739413636959,0.07056,97701.0,97700.0,0.1]
[1739413651770,0.07056,97701.0,97700.0,0.3046783]
[1739413651966,0.002,97701.0,97700.0,0.3046783]
[1739413657178,0.002,97701.0,97700.0,0.1]
[1739413657362,0.07056,97701.0,97700.0,0.1]
[1739413663275,0.002,97701.0,97700.0,0.1]
[1739413663585,0.07056,97701.0,97700.0,0.1]
[1739413674392,0.002,97701.0,97700.0,0.1]
[1739413674590,0.07056,97701.0,97700.0,0.1]
[1739413692205,0.002,97701.0,97700.0,0.1]
[1739413692412,0.07052,97701.0,97700.0,0.1]
[1739413693697,0.07052,97701.0,97700.0,0.3046783]
[1739413693898,0.002,97701.0,97700.0,0.3046783]
[1739413705333,0.002,97701.0,97700.0,0.1]
[1739413705629,0.07052,97701.0,97700.0,0.1]
[1739413707926,0.06952,97701.0,97700.0,0.1]
[1739413708126,0.07052,97701.0,97700.0,0.1]
[1739413711529,0.002,97701.0,97700.0,0.1]
[1739413711926,0.07052,97701.0,97700.0,0.1]
[1739413712121,0.002,97701.0,97700.0,0.1]
[1739413713724,0.002,97701.0,97700.0,0.4608]
[1739413724140,0.06852,97710.0,97709.0,0.2046595]
[1739413724339,0.00083916,97715.0,97714.0,0.204649]
[1739413724737,0.20083916,97715.0,97714.0,0.204649]
[1739413725637,0.20083916,97715.0,97714.0,0.21506705]
[1739413726031,0.20183916,97715.0,97714.0,0.21506705]
[1739413727740,0.20283916,97715.0,97714.0,0.21506705]
[1739413728937,0.002,97715.0,97714.0,0.21506705]
[1739413730740,0.002,97715.0,97714.0,0.22106705]
[1739413737046,0.002,97715.0,97714.0,0.58186705]
[1739413743848,0.7574469,97715.0,97714.0,0.01641805]
[1739413744652,0.7574469,97715.0,97714.0,0.006]
[1739413747650,0.7574469,97715.0,97714.0,0.009]
[1739413751954,0.80722057,97715.0,97714.0,0.009]
[1739413752160,0.2046762,97701.0,97698.0,0.2046823]
[1739413753157,0.2046762,97701.0,97699.0,0.2046798]
[1739413753357,0.2056762,97701.0,97700.0,0.103]
[1739413753662,0.2066762,97701.0,97700.0,0.108]
[1739413754557,0.2066762,97701.0,97700.0,0.11819391]
[1739413754861,0.4166762,97701.0,97700.0,0.11819391]
[1739413758557,0.7774762,97701.0,97700.0,0.11819391]
[1739413759758,0.5728,97701.0,97700.0,0.32287221]
[1739413759958,0.212,97701.0,97700.0,0.32287221]
[1739413760260,0.232,97701.0,97700.0,0.32287221]
[1739413762655,0.002,97701.0,97700.0,0.32287221]
[1739413767469,0.2066762,97701.0,97700.0,0.11819391]
[1739413770157,0.002,97701.0,97700.0,0.11819391]
[1739413780066,0.002,97701.0,97700.0,0.32287221]
[1739413782863,0.002,97701.0,97700.0,0.68367221]
[1739413783670,0.002,97701.0,97700.0,0.47899391]
[1739413783871,0.002,97701.0,97700.0,0.11819391]
[1739413784771,0.2066762,97701.0,97700.0,0.11819391]
[1739413785962,0.001,97701.0,97700.0,0.11319391]
[1739413786169,0.002,97701.0,97700.0,0.11319391]
[1739413786476,0.002,97701.0,97700.0,0.11019391]
[1739413791377,0.002,97701.0,97700.0,0.31487221]
[1739413801289,0.002,97701.0,97700.0,0.11019391]
[1739413801482,0.2066762,97701.0,97700.0,0.11019391]
[1739413801683,0.2564484,97701.0,97700.0,0.11019391]
[1739413803292,0.0517722,97701.0,97700.0,0.31487221]
[1739413809592,0.002,97701.0,97700.0,0.31487221]
[1739413809992,0.212,97701.0,97700.0,0.31487221]
[1739413810888,0.212,97701.0,97700.0,0.67567221]
[1739413816698,0.18323762,97723.0,97722.0,0.2046322]
[1739413816899,0.42323762,97723.0,97722.0,0.2046322]
[1739413817801,0.42423762,97723.0,97722.0,0.2056322]
[1739413818211,0.42523762,97723.0,97722.0,0.2066322]
[1739413818595,0.18523762,97723.0,97722.0,0.2066322]
[1739413818896,0.23523762,97723.0,97722.0,0.002]
[1739413820402,0.05215348,97723.0,97722.0,0.002]
[1739413824006,0.00215348,97723.0,97722.0,0.002]
[1739413824199,0.21215348,97723.0,97722.0,0.002]
[1739413824505,0.00215348,97723.0,97722.0,0.002]
[1739413824702,0.23215348,97723.0,97722.0,0.002]
[1739413824905,0.20215348,97723.0,97722.0,0.002]
[1739413826303,0.21215348,97723.0,97722.0,0.002]
[1739413827609,0.00215348,97723.0,97722.0,0.002]
[1739413833406,0.20678368,97723.0,97722.0,0.002]
[1739413839110,0.00215348,97723.0,97722.0,0.002]
[1739413839518,0.22215348,97723.0,97722.0,0.002]
[1739413839709,0.22215348,97723.0,97704.0,0.54478974]
[1739413839910,0.07925201,97720.0,97704.0,0.54478974]
[1739413840105,0.29925201,97720.0,97704.0,0.54478974]
[1739413840310,0.29925201,97720.0,97710.0,0.2046565]
[1739413840512,0.2046491,97714.0,97710.0,0.2046565]
[1739413840818,0.2046491,97714.0,97704.0,0.75085804]
[1739413841019,0.2046491,97714.0,97704.0,0.75945804]
[1739413841217,0.4046491,97714.0,97704.0,0.75945804]
[1739413841412,0.2046491,97714.0,97704.0,0.75945804]
[1739413841617,0.17,97714.0,97704.0,0.56078974]
[1739413841806,0.28388951,97720.0,97707.0,0.2046636]
[1739413842011,0.50388951,97720.0,97707.0,0.2046636]
[1739413842212,0.001,97714.0,97707.0,0.2046636]
[1739413842612,0.181,97714.0,97707.0,0.2046636]
[1739413842922,0.002,97714.0,97710.0,0.009]
[1739413843220,0.06836,97713.0,97710.0,0.009]
[1739413843914,0.06836,97713.0,97707.0,0.2176636]
[1739413844113,0.002,97714.0,97707.0,0.2176636]
[1739413844509,0.2056516,97713.0,97710.0,0.008]
[1739413844808,0.2066516,97713.0,97710.0,0.014]
[1739413845013,0.5674516,97713.0,97710.0,0.014]
[1739413845414,0.7764516,97713.0,97710.0,0.008]
[1739413845626,0.5664516,97713.0,97710.0,0.008]
[1739413846014,0.7554516,97713.0,97707.0,0.006]
[1739413846321,0.5654516,97713.0,97707.0,0.015]
[1739413846911,0.5608,97713.0,97702.0,0.18398974]
[1739413847110,0.5628,97713.0,97710.0,0.015]
[1739413847315,0.06836,97712.0,97710.0,0.015]
[1739413847715,0.06836,97712.0,97710.0,0.006]
[1739413848244,0.25836,97712.0,97710.0,0.006]
[1739413848528,0.2046559,97711.0,97710.0,0.006]
[1739413848828,0.2046559,97711.0,97707.0,0.015]
[1739413848829,0.204658,97710.0,97707.0,0.015]
[1739413849016,0.414658,97710.0,97707.0,0.015]
[1739413849213,0.414658,97710.0,97702.0,0.18398974]
[1739413850121,0.415658,97710.0,97707.0,0.009]
[1739413850625,0.416658,97710.0,97707.0,0.009]
[1739413850827,0.416658,97710.0,97702.0,0.18998974]
[1739413850828,0.415658,97710.0,97702.0,0.18998974]
[1739413851123,0.416658,97710.0,97702.0,0.19898974]
[1739413852527,0.415658,97710.0,97702.0,0.19298974]
[1739413853118,0.211,97710.0,97702.0,0.19298974]
[1739413853313,0.211,97710.0,97704.0,0.2046693]
[1739413853518,0.211,97710.0,97707.0,0.009]
[1739413853719,0.06836,97709.0,97707.0,0.009]
[1739413854018,0.27836,97709.0,97707.0,0.009]
[1739413854420,0.06836,97709.0,97707.0,0.009]
[1739413854930,0.002,97710.0,97709.0,0.2046595]
[1739413856020,0.001,97710.0,97709.0,0.2046595]
[1739413856328,0.002,97710.0,97709.0,0.2106595]
[1739413856713,0.001,97710.0,97709.0,0.2196595]
[1739413856922,0.002,97710.0,97709.0,0.2196595]
[1739413860929,0.002,97710.0,97709.0,0.015]
[1739413862531,0.3628,97710.0,97709.0,0.015]
[1739413866032,0.002,97710.0,97709.0,0.015]
[1739413869140,0.0517689,97710.0,97709.0,0.015]
[1739413873340,0.0517689,97710.0,97709.0,0.2196594]
[1739413874344,0.0517689,97710.0,97709.0,0.5804594]
[1739413876148,0.002,97710.0,97709.0,0.5804594]
[1739413879846,0.002,97710.0,97709.0,0.76444914]
[1739413881747,0.232,97710.0,97709.0,0.76444914]
[1739413881932,0.002,97710.0,97709.0,0.76444914]
[1739413883638,0.002,97710.0,97709.0,0.5804594]
[1739413892155,0.002,97710.0,97709.0,0.3758]
[1739413892348,0.222,97710.0,97709.0,0.3758]
[1739413892544,0.002,97710.0,97709.0,0.015]
[1739413892949,0.242,97710.0,97709.0,0.015]
[1739413893149,0.002,97710.0,97709.0,0.015]
[1739413933184,0.002,97710.0,97709.0,0.2196594]
[1739413938478,0.192,97710.0,97709.0,0.2196594]
[1739413938791,0.002,97710.0,97709.0,0.015]
[1739413939087,0.202,97710.0,97709.0,0.015]
[1739413939683,0.002,97710.0,97709.0,0.015]
[1739413943181,0.222,97710.0,97709.0,0.015]
[1739413965102,0.222,97710.0,97709.0,0.3758]
[1739413973808,0.222,97710.0,97709.0,0.5804594]
[1739413998335,0.00015348,97723.0,97722.0,0.2046322]
[1739413998827,0.18308414,97726.0,97725.0,0.2046259]
[1739413999129,0.38308414,97726.0,97725.0,0.2046259]
[1739413999426,0.18308414,97726.0,97725.0,0.2046259]
[1739414000222,0.18408414,97726.0,97725.0,0.2136259]
[1739414000429,0.18508414,97726.0,97725.0,0.2196259]
[1739414001131,0.18508414,97726.0,97725.0,0.015]
[1739414001329,0.002,97726.0,97725.0,0.015]
[1739414001530,0.202,97726.0,97725.0,0.015]
[1739414001726,0.202,97726.0,97725.0,0.021]
[1739414003920,0.002,97726.0,97725.0,0.021]
[1739414004122,0.222,97726.0,97725.0,0.021]
[1739414004324,0.002,97726.0,97725.0,0.021]
[1739414004826,0.222,97726.0,97725.0,0.021]
[1739414005016,0.002,97726.0,97725.0,0.021]
[1739414005428,0.212,97726.0,97725.0,0.021]
[1739414005839,0.002,97726.0,97725.0,0.021]
[1739414006627,0.212,97726.0,97725.0,0.021]
[1739414006832,0.002,97726.0,97725.0,0.021]
[1739414008027,0.212,97726.0,97725.0,0.021]
[1739414008333,0.5728,97726.0,97725.0,0.021]
[1739414012227,0.204635,97721.0,97716.0,0.2046444]
[1739414012432,0.3608,97717.0,97716.0,0.2046444]
[1739414012733,0.5708,97717.0,97716.0,0.2046444]
[1739414013432,0.3608,97717.0,97716.0,0.2046444]
[1739414013823,0.3608,97717.0,97716.0,0.2146444]
[1739414014030,0.001,97721.0,97719.0,0.2046368]
[1739414014328,0.211,97721.0,97719.0,0.2046368]
[1739414014535,0.21,97721.0,97719.0,0.2046368]
[1739414015329,0.211,97721.0,97719.0,0.2146368]
[1739414015534,0.2046365,97720.0,97719.0,0.01]
[1739414015731,0.4346365,97720.0,97719.0,0.01]
[1739414016824,0.4356364,97720.0,97719.0,0.007]
[1739414017426,0.204639,97719.0,97713.0,0.20480358]
[1739414017634,0.2046432,97717.0,97713.0,0.20480358]
[1739414017834,0.4246432,97717.0,97713.0,0.20480358]
[1739414018034,0.2046432,97717.0,97714.0,0.204648]
[1739414018533,0.23,97717.0,97713.0,0.00015348]
[1739414018837,0.2,97717.0,97716.0,0.2046448]
[1739414019329,0.001,97720.0,97716.0,0.2046448]
[1739414019535,0.211,97720.0,97716.0,0.2046448]
[1739414020240,0.001,97719.0,97716.0,0.2046448]
[1739414020430,0.241,97719.0,97716.0,0.2116448]
[1739414021137,0.24,97719.0,97716.0,0.2216448]
[1739414022028,0.24,97719.0,97716.0,0.02701078]
[1739414022939,0.24,97719.0,97716.0,0.02001078]
[1739414023135,0.24,97719.0,97716.0,0.02701078]
[1739414023335,0.2046424,97718.0,97716.0,0.02701078]
[1739414023531,0.4146424,97718.0,97716.0,0.02701078]
[1739414024733,0.4156424,97718.0,97716.0,0.02701078]
[1739414027733,0.211,97718.0,97716.0,0.23165468]
[1739414032744,0.211,97718.0,97717.0,0.2046427]
[1739414034141,0.001,97718.0,97717.0,0.2146427]
[1739414034342,0.001,97718.0,97717.0,0.2216427]
[1739414034343,0.211,97718.0,97717.0,0.2216427]
[1739414036648,0.211,97718.0,97717.0,0.017]
[1739414036847,0.27924,97718.0,97717.0,0.017]
[1739414038936,0.3290043,97718.0,97717.0,0.017]
[1739414039139,0.2607643,97718.0,97717.0,0.017]
[1739414041941,0.211,97718.0,97717.0,0.017]
[1739414042251,0.27924,97718.0,97717.0,0.017]
[1739414047555,0.26924,97718.0,97717.0,0.017]
[1739414057259,0.31900412,97718.0,97717.0,0.017]
[1739414057466,0.25076412,97718.0,97717.0,0.017]
[1739414062858,0.201,97718.0,97717.0,0.017]
[1739414063054,0.26924,97718.0,97717.0,0.017]
[1739414063368,0.26924,97718.0,97717.0,0.2216427]
[1739414063569,0.201,97718.0,97717.0,0.2216427]
[1739414064067,0.001,97718.0,97717.0,0.2216427]
[1739414066269,0.001,97718.0,97717.0,0.40592185]
[1739414069968,0.001,97718.0,97717.0,0.2216427]
[1739414075765,0.00015348,97735.0,97717.0,0.017]
[1739414075967,0.22015348,97735.0,97732.0,0.2046103]
[1739414077074,0.22115348,97735.0,97732.0,0.21493012]
[1739414077769,0.22115348,97735.0,97732.0,0.22493012]
[1739414078968,0.22115348,97735.0,97732.0,0.23193012]
[1739414079269,0.22115348,97735.0,97732.0,0.02731982]
[1739414079469,0.22115348,97735.0,97734.0,0.2046071]
[1739414080470,0.22015348,97735.0,97734.0,0.2046071]
[1739414080670,0.22115348,97735.0,97734.0,0.2166071]
[1739414081172,0.22115348,97735.0,97734.0,0.012]
[1739414081871,0.22115348,97735.0,97734.0,0.019]
[1739414086083,0.27091014,97735.0,97734.0,0.019]
[1739414089481,0.05091014,97735.0,97734.0,0.019]
[1739414098182,0.05091014,97735.0,97734.0,0.03499529]
[1739414099294,0.05091014,97735.0,97734.0,0.019]
[1739414100396,0.00115348,97735.0,97734.0,0.019]
[1739414103088,0.18423762,97735.0,97734.0,0.019]
[1739414103287,0.18423762,97735.0,97734.0,0.03499529]
[1739414105896,0.21434051,97749.0,97734.0,0.03499529]
[1739414106099,0.00153499,97755.0,97748.0,0.7216]
[1739414106297,0.3608,97777.0,97748.0,0.7216]
[1739414106996,0.00015348,97762.0,97748.0,0.7216]
[1739414107392,0.001,97749.0,97748.0,0.7216]
[1739414107996,0.001,97749.0,97748.0,0.7286]
[1739414108299,0.001,97756.0,97748.0,0.7406]
[1739414108996,0.001,97749.0,97748.0,0.7406]
[1739414110391,0.24496059,97757.0,97748.0,0.7286]
[1739414110598,0.24496059,97757.0,97756.0,0.3608]
[1739414112002,0.24496059,97757.0,97756.0,0.3828]
[1739414112191,0.23886316,97757.0,97756.0,0.3828]
[1739414112392,0.21071601,97764.0,97756.0,0.3828]
[1739414112598,0.3608,97794.0,97763.0,0.3608]
[1739414112794,0.06816,97793.0,97784.0,0.44005201]
[1739414113100,0.21,97793.0,97784.0,0.3608]
[1739414113301,0.06816,97792.0,97784.0,0.3608]
[1739414113599,0.2044878,97791.0,97784.0,0.3608]
[1739414113896,0.2044907,97790.0,97784.0,0.3608]
[1739414114098,0.21,97790.0,97784.0,0.3608]
[1739414114303,0.3608,97786.0,97780.0,0.07925201]
[1739414114604,0.2045009,97785.0,97778.0,0.00015339]
[1739414114799,0.4345009,97785.0,97784.0,0.007]
[1739414115101,0.4345009,97785.0,97784.0,0.022]
[1739414115306,0.4345009,97785.0,97784.0,0.015]
[1739414115602,0.23,97785.0,97780.0,0.022]
[1739414115804,0.2045088,97781.0,97780.0,0.03226375]
[1739414116003,0.4145088,97781.0,97780.0,0.02526375]
[1739414117303,0.204513,97779.0,97778.0,0.00015339]
[1739414117503,0.394513,97779.0,97778.0,0.00015339]
[1739414118910,0.394513,97779.0,97778.0,0.00715339]
[1739414120808,0.394513,97779.0,97778.0,0.02215339]
[1739414127502,0.204513,97779.0,97778.0,0.02215339]
[1739414127704,0.444513,97779.0,97778.0,9e-08]
[1739414128108,0.962813,97779.0,97778.0,9e-08]
[1739414128900,0.0511308,97775.0,97769.0,0.00015339]
[1739414129111,0.5653318,97770.0,97769.0,0.00015339]
[1739414129311,0.5653318,97770.0,97769.0,1e-08]
[1739414129312,0.7853318,97770.0,97769.0,1e-08]
[1739414131911,1.3046318,97770.0,97769.0,1e-08]
[1739414132105,1.42521308,97770.0,97769.0,1e-08]